Cogmind - Beta 14 @@@ ROGUE MODE // 2025.03.18 @ 13:09:04 Player: canerib Result: Self-destructed Performance ------------- Evolutions (2) 1000 Regions Visited (4) 800 Robots Destroyed (55) 275 Value Destroyed (1320) 1320 Prototype IDs (2) 40 Alien Tech Used (0) 0 Bonus (-826) -826 TOTAL SCORE: 2609 Bonus ------- High Alert Combat Kills 30 Follower Combat Kills 103 Friendly Fire -959 Cogmind --------- Core Integrity 352/550 Matter 270/300 Energy 240/240 System Corruption 6% Temperature Cool (0) Movement Treading (145) Location -8/Storage Parts ------- > --- POWER (1) -------- Nuclear Core > --- PROPULSION (2) --- Advanced Treads Advanced Treads > --- UTILITY (5) ------ Heat Sink Medium Storage Unit Hardened Medium Armor Plating > --- WEAPON (3) ------- Minigun Minigun Scythe > --- INVENTORY (10) --- Light Deuterium Engine Advanced Treads Advanced Treads Improved Heat Sink Improved Terrain Scanner Seismic Detector Hardlight Generator Minigun Minigun Grenade Launcher Peak State ------------ > --- POWER ------------ Nuclear Core > --- PROPULSION ------- Advanced Treads Advanced Treads > --- UTILITY ---------- Heat Sink Medium Storage Unit Advanced Targeting Computer Hardened Medium Armor Plating Hacking Suite > --- WEAPON ----------- Minigun Minigun Minigun > --- INVENTORY -------- Light Deuterium Engine Advanced Treads Advanced Treads Improved Heat Sink Improved Terrain Scanner Seismic Detector Minigun Grenade Launcher [Rating: 31] Favorites ----------- Power Ion Engine Engine Ion Engine Power Core Nuclear Core Propulsion Light Treads Treads Light Treads Utility Medium Storage Unit Device Heat Sink Storage Medium Storage Unit Processor Advanced Targeting Computer Hackware Hacking Suite Protection Hardened Medium Armor Plating Weapon Minigun Energy Gun Medium Laser Ballistic Gun Minigun Launcher Grenade Launcher Slashing Weapon Scythe Build | -11 -10 -9 -8 -8 ------- Run | Yrd Mat Mat Mat Sto Slots Evolved 4 | . . 2 2 . Power . | . . . . . Propulsion . | . . . . . Utility 3 | . . 1 2 . Weapon 1 | . . 1 . . Parts Attached 40 | 8 1 12 11 8 Power 6 | 2 . 1 3 . Engine 5 | 2 . 1 2 . Core 1 | . . . 1 . Reactor . | . . . . . Propulsion 10 | 2 . 4 2 2 Treads 10 | 2 . 4 2 2 Leg . | . . . . . Wheel . | . . . . . Hover . | . . . . . Flight . | . . . . . Utility 13 | 2 1 3 6 1 Device 5 | 1 . 2 2 . Storage 2 | 1 1 . . . Processor 2 | . . . 2 . Hackware 1 | . . . . 1 Protection 3 | . . 1 2 . Artifact . | . . . . . Weapon 11 | 2 . 4 . 5 Energy Gun 1 | . . 1 . . Energy Cannon . | . . . . . Ballistic Gun 8 | 2 . 3 . 3 Ballistic Cannon . | . . . . . Launcher 1 | . . . . 1 Special Weapon . | . . . . . Impact Weapon . | . . . . . Slashing Weapon 1 | . . . . 1 Piercing Weapon . | . . . . . Special Melee Weapon . | . . . . . Unidentified Prototypes . | . . . . . Parts Lost 3 | . . . 1 2 Power . | . . . . . Propulsion . | . . . . . Utility 3 | . . . 1 2 Weapon . | . . . . . Highest Loss Streak 1 | . . . 1 1 To Critical Strikes . | . . . . . Average Slot Usage (%) 97 | . 100 100 91 95 Engine 7 | . 14 11 4 . Core 3 | . . . 3 9 Treads 21 | . 28 22 17 18 Device 11 | . 14 11 13 9 Storage 10 | . 14 11 9 9 Processor 4 | . . . 9 9 Hackware 1 | . . . . 5 Protection 6 | . . 10 7 9 Energy Gun 1 | . . 4 . . Ballistic Gun 27 | . 28 28 27 24 Peak Build Rating 31 | 7 8 19 26 31 Average Rating 17 | 5 7 15 22 29 On Entrance 11 | . 7 8 19 23 Naked Turns . | . . . . . Heaviest Build 36 | 13 18 34 36 35 Greatest Support 44 | 40 40 40 40 44 Greatest Overweight (x) 1 | . . . 1 . Average Overweight (x) . | . . . . . Largest Inventory Capacity 10 | 8 10 10 10 10 Average Capacity 9 | 7 8 10 10 10 Most Carried 10 | 4 8 10 9 10 Average Carried 8 | 1 6 9 8 9 Final Capacity 10 | 8 10 10 10 10 Final Carried 10 | 4 8 10 9 10 Class Distribution -------------------- 33% | Gunner 31% | Mutant 13% | Tank 10% | Scavenger-Gunner 9% | Commander-Gunner Dominant Class ---------------- Mutant | -10/Materials Tank | -9/Materials Scavenger-Gunner | -8/Materials Gunner | -8/Storage Resources | -11 -10 -9 -8 -8 ----------- Run | Yrd Mat Mat Mat Sto Matter Collected 1533 | 294 22 490 369 358 Remotely . | . . . . . Salvage Created 2190 | 72 290 821 437 570 Parts 136 | 7 17 57 24 31 Haulers Intercepted 6 | . 2 1 1 2 Recyclers Shooed . | . . . . . Parts Field Recycled . | . . . . . Retrieved Matter . | . . . . . Parts Self-Destructed . | . . . . . Prevented . | . . . . . Kills | -11 -10 -9 -8 -8 ------- Run | Yrd Mat Mat Mat Sto Combat Hostiles Destroyed 31 | . 6 14 4 7 Guns 31 | . 6 14 4 7 Classes Destroyed 10 | 2 3 3 2 . Tunneler 1 | 1 . . . . Hauler 6 | . 2 1 1 2 Recycler 3 | 1 . . 2 . Operator 2 | . . 2 . . Watcher 6 | . . 4 2 . Swarmer 6 | . 3 . . 3 Grunt 20 | . 3 8 2 7 Brawler 1 | . . . 1 . Sentry 8 | . . 6 . 2 Hunter 2 | . . . 1 1 Best Kill Streak 5 | 2 2 5 3 3 Combat Bots Only 5 | . 2 5 3 3 Max Kills in Single Turn 2 | 1 1 2 1 2 Gunslinging 1 | . . 1 . . Exploded . | . . . . . Melee . | . . . . . Uniques/NPCs Destroyed . | . . . . . Combat | -11 -10 -9 -8 -8 -------- Run | Yrd Mat Mat Mat Sto Hostile Shots Fired 115 | . 21 38 20 36 Missed 22 | . 3 11 4 4 Damage Taken 1813 | . 187 372 280 974 Core 250 | . 24 28 17 181 Absorbed by Shields . | . . . . . Regen/Repaired (Parts) 39 | . . . 39 . Core Remaining (%) 94 | 100 90 93 . . Volleys Fired 118 | 7 24 37 23 27 Largest 3 | 2 2 3 3 3 Hottest 90 | 40 40 90 75 75 Shots Fired 305 | 14 48 111 69 63 Gun 296 | 14 48 111 69 54 Cannon . | . . . . . Launcher 9 | . . . . 9 Special . | . . . . . Kinetic 285 | 14 48 100 69 54 Thermal 11 | . . 11 . . Explosive 9 | . . . . 9 Electromagnetic . | . . . . . Robot Hit Streak 24 | 8 10 24 8 13 Robot Miss Streak 5 | 2 2 5 4 3 Penetration Max . | . . . . . Secondary Targets 3 | . . 1 . 2 Max Gunslinging Chain 1 | . . 1 . 1 Shots Hit Robots 189 | 10 34 64 50 31 Core Hits 102 | 5 15 35 17 30 Critical Kills 2 | . . . . 2 Critical Parts Destroyed 1 | . . . . 1 Critical Strikes 4 | . . 1 . 3 Destroy 4 | . . 1 . 3 Melee Attacks 9 | . . . . 9 Impact . | . . . . . Slashing 9 | . . . . 9 Piercing . | . . . . . Sneak Attacks . | . . . . . Combat Hostiles . | . . . . . Follow-up Attacks . | . . . . . Damage Inflicted 3128 | 91 283 1055 873 826 Guns 2769 | 91 283 1055 873 467 Cannons . | . . . . . Explosions 359 | . . . . 359 Melee . | . . . . . Ramming . | . . . . . Kinetic 2682 | 91 283 968 873 467 Thermal 87 | . . 87 . . Explosive 359 | . . . . 359 Electromagnetic . | . . . . . Impact . | . . . . . Slashing . | . . . . . Piercing . | . . . . . Highest Corruption 6 | . . . . 6 Average Corruption 3 | . . . . 3 Corruption Purged . | . . . . . Corruption Blocked . | . . . . . Overload Shots . | . . . . . Overflow Damage . | . . . . . Projectiles . | . . . . . Explosions . | . . . . . Melee . | . . . . . Knockbacks . | . . . . . Impact . | . . . . . Kinetic . | . . . . . Secondary . | . . . . . Self-Inflicted Damage 121 | . . . . 121 Shots 5 | . . . . 5 Rammed . | . . . . . Targets Rammed . | . . . . . Kicked . | . . . . . Crushed . | . . . . . Highest Temperature 160 | . 12 160 46 32 Average Temperature 36 | . 7 54 14 13 Received Heat Transfer 369 | . 78 174 81 36 Siege Activations . | . . . . . Robots Corrupted . | . . . . . Combat Hostiles . | . . . . . Parts Fried . | . . . . . Impact Corruptions . | . . . . . Robots Melted . | . . . . . Combat Hostiles . | . . . . . Parts Melted . | . . . . . Heat Transferred 259 | . . 259 . . Parts Sabotaged . | . . . . . Parts Stolen . | . . . . . Parts Stripped . | . . . . . Power Chain Reactions . | . . . . . Alert | -11 -10 -9 -8 -8 ------- Run | Yrd Mat Mat Mat Sto Peak Influence 539 | 10 168 438 308 539 Initial 141 | . 6 24 141 130 Average 188 | 2 101 211 202 270 Maximum Alert Level 2 | . . 2 1 2 Low Security (%) 57 | 100 100 47 54 20 Level 1 38 | . . 51 45 65 Level 2 3 | . . 1 . 13 Level 3 . | . . . . . Level 4 . | . . . . . Level 5 . | . . . . . High Security . | . . . . . Max Security . | . . . . . Squads Dispatched 6 | . 1 1 . 4 Investigation 2 | . 1 . . 1 Extermination . | . . . . . Reinforcement 1 | . . 1 . . Assault . | . . . . . Garrison 3 | . . . . 3 Intercept . | . . . . . Searches Triggered . | . . . . . Construction Impeded . | . . . . . Haulers Reinforced . | . . . . . Active Scanning Responses . | . . . . . Cargo Convoy Interrupts . | . . . . . Stealth | -11 -10 -9 -8 -8 --------- Run | Yrd Mat Mat Mat Sto Distress Signals 4 | . 1 2 . 1 Communications Jammed . | . . . . . Distress Signals . | . . . . . Times Spotted 50 | . 9 20 8 13 Peak Tracking Total 4 | . 4 4 3 3 Tactical Retreats 4 | . 1 1 . 2 Traps | -11 -10 -9 -8 -8 ------- Run | Yrd Mat Mat Mat Sto Traps Triggered 5 | . 1 . 3 1 Indirectly . | . . . . . Trap Hack Attempts . | . . . . . Triggered . | . . . . . Disarmed . | . . . . . Reprogrammed . | . . . . . Reused . | . . . . . Traps Extracted . | . . . . . Installed . | . . . . . Triggered . | . . . . . Machines | -11 -10 -9 -8 -8 ---------- Run | Yrd Mat Mat Mat Sto Machines Disabled 3 | . . . 2 1 Max in Single Turn 1 | . . . 1 1 Machines Repaired . | . . . . . Machines Dismantled . | . . . . . Machines Sabotaged . | . . . . . Overloaded Fab Kills . | . . . . . Hacking | -11 -10 -9 -8 -8 --------- Run | Yrd Mat Mat Mat Sto Machines Accessed 11 | . 2 . 2 7 Terminals 10 | . 2 . 1 7 Fabricators . | . . . . . Repair Stations 1 | . . . 1 . Recycling Units . | . . . . . Scanalyzers . | . . . . . Garrison Access . | . . . . . Total Hacks 33 | . 9 . 4 20 Successful 18 | . 4 . 3 11 Failed 15 | . 5 . 1 9 Catastrophic 1 | . . . . 1 Database Lockouts . | . . . . . Manual 5 | . 1 . 2 2 Terminals 31 | . 9 . 2 20 Fabricators . | . . . . . Repair Stations 2 | . . . 2 . Recycling Units . | . . . . . Scanalyzers . | . . . . . Garrison Access . | . . . . . Terminal Hacks 14 | . 3 . . 11 Prototype ID Bank 1 | . . . . 1 Open Door 3 | . . . . 3 Alert Level 3 | . 1 . . 2 Unreport Threat 2 | . . . . 2 Locate Traps 1 | . . . . 1 Dispatch Records 1 | . . . . 1 Transport Status 1 | . 1 . . . Hauler Manifests 1 | . 1 . . . Registered Components 1 | . . . . 1 Fabricator Hacks . | . . . . . Repair Station Hacks 2 | . . . 2 . Scan Component 1 | . . . 1 . Repair 1 | . . . 1 . Recycling Unit Hacks . | . . . . . Scanalyzer . | . . . . . Garrison Access Hacks . | . . . . . Unauthorized Hacks 2 | . 1 . 1 . Terminals 2 | . 1 . 1 . Botnet 2 | . 1 . 1 . Fabricators . | . . . . . Repair Stations . | . . . . . Recycling Units . | . . . . . Scanalyzers . | . . . . . Garrison Access . | . . . . . Data Cores Recovered 1 | . . 1 . . Used . | . . . . . Hacking Detections 8 | . 2 . 1 5 Full Trace Events 2 | . . . . 2 Feedback Events . | . . . . . Feedback Blocked . | . . . . . Robot Schematics Acquired . | . . . . . Robots Built . | . . . . . Authchips . | . . . . . Time . | . . . . . Total Robot Build Rating . | . . . . . Part Schematics Acquired . | . . . . . Parts Built . | . . . . . Authchips . | . . . . . Time . | . . . . . Total Part Build Rating . | . . . . . Parts Repaired 1 | . . . 1 . Time 38 | . . . 38 . Parts Recycled . | . . . . . Recycled Matter . | . . . . . Retrieved Matter . | . . . . . Retrieved Components . | . . . . . Parts Scanalyzed . | . . . . . Part Schematics Acquired . | . . . . . Parts Damaged . | . . . . . Bothacking | -11 -10 -9 -8 -8 ------------ Run | Yrd Mat Mat Mat Sto Used RIF Installer . | . . . . . Robots Hacked . | . . . . . Non-combat . | . . . . . Combat . | . . . . . Robot Hacks Applied . | . . . . . Relay Couplers Released . | . . . . . Fabnet Peak Effective % . | . . . . . Robots Rewired . | . . . . . Allies Hacked . | . . . . . Hacks Repelled . | . . . . . Allies | -11 -10 -9 -8 -8 -------- Run | Yrd Mat Mat Mat Sto Total Allies 10 | . . . . 10 Largest Group 10 | . . . . 10 Highest-Rated Group 173 | . . . . 173 Highest-Rated Ally 29 | . . . . 29 Total Orders . | . . . . . Ally Attacks 37 | . . . . 37 Total Damage 531 | . . . . 531 Kills 5 | . . . . 5 Allies Corrupted 1 | . . . . 1 Allies Melted . | . . . . . Intel | -11 -10 -9 -8 -8 ------- Run | Yrd Mat Mat Mat Sto Robot Analysis Total . | . . . . . Derelict Logs Recovered . | . . . . . Drone Launches . | . . . . . Drone Recoveries . | . . . . . Exploration | -11 -10 -9 -8 -8 ------------- Run | Yrd Mat Mat Mat Sto Turns Passed 2097 | 99 514 583 374 527 Spaces Moved 939 | 44 226 254 149 266 Core 3 | 3 . . . . Treads 936 | 41 226 254 149 266 Legs . | . . . . . Wheels . | . . . . . Hover . | . . . . . Flight . | . . . . . Fastest Speed 50 | 50 160 160 160 145 Average Speed 155 | 152 160 160 162 145 Slowest Speed 240 | 160 160 160 240 160 Overloaded Moves . | . . . . . Propulsion Burnouts . | . . . . . Robots Hopped . | . . . . . Cave-ins Triggered 2 | . . . . 2 Exploration Rate (%) 28 | 4 47 31 20 41 Regions Visited 4 Branch Regions 1 Pre-discovered Areas . | . . . . . Known Exits Taken . | . . . . . Unknown Exits Taken 4 | 1 1 1 1 . Scrap Searched . | . . . . . Spaces Dug 51 | . . . . 51 Terrain Destroyed 51 | . . . . 51 Melee 7 | . . . . 7 Projectile . | . . . . . AOE 44 | . . . . 44 Terrain Rammed . | . . . . . Walls Destroyed . | . . . . . Machines Disabled . | . . . . . Actions | -11 -10 -9 -8 -8 --------- Run | Yrd Mat Mat Mat Sto Total 1374 | 61 341 374 241 357 Wait 222 | . 86 50 53 33 Move 933 | 43 225 253 148 264 Hop . | . . . . . Pick Up 23 | 3 4 9 3 4 Fast Attach 15 | 7 . . 7 1 Attach 8 | . . 4 3 1 Detach 1 | . . 1 . . Swap 17 | 1 1 8 1 6 Drop 24 | . 1 12 3 8 Fire 118 | 7 24 37 23 27 Melee 9 | . . . . 9 Ram . | . . . . . Kick . | . . . . . Crush . | . . . . . Escape Stasis 2 | . . . . 2 Rewire 2 | . . . . 2 Trap . | . . . . . Miscellaneous . | . . . . . Route ------- -11/Scrapyard -10/Materials (discovered 2 exits: [*Mat x2]) -9/Materials -8/Materials -8/Storage History --------- Turn | Location | Event 15 | -11/Scrapyard | Discovered new exit (range 16) 100 | -11/Scrapyard | Entered Materials 310 | -10/Materials | Build established: Mutant 365 | -10/Materials | Discovered new exit (range 6) 523 | -10/Materials | Discovered new exit (range 15) 614 | -10/Materials | Entered another Materials area 614 | -9/Materials | Evolved 2 slots: Utility x1, Weapon x1 1161 | -9/Materials | Discovered new exit (range 14) 1197 | -9/Materials | Entered another Materials area 1197 | -8/Materials | Evolved 2 slots: Utility x2 1260 | -8/Materials | Discovered new exit (range 8) 1455 | -8/Materials | Repaired Lgt. Deuterium Engine 1571 | -8/Materials | Entered Storage 1732 | -8/Storage | Build established: Gunner 1802 | -8/Storage | Assisted by bots powering up and referring to "LRC-V3" 1833 | -8/Storage | Garrison activated, responded to threat 2011 | -8/Storage | Crushed by falling debris 2028 | -8/Storage | Murdered 6 allies 2096 | -8/Storage | Crushed by falling debris 2098 | -8/Storage | Self-destructed Last Messages --------------- 02008_ U-05 Engineer builds a Wall. 02009_ The unstable cave ceiling collapses. 02009_ Imp. Heat Sink crushed. 02011_ The unstable cave ceiling collapses. 02011_ Crushed by falling debris. 02011_ Hacking Suite destroyed. 02011_ System corrupted by crushing effect (+3). 02013_ U-05 Engineer builds a Wall. 02014_ K-01 Serf collects debris. 02028_ The unstable cave ceiling collapses. 02038_ Dropped Grenade Launcher. 02039_ Dropped Minigun. 02039_ Acquired Scythe. 02042_ Acquired Grenade Launcher. 02058_ The unstable cave ceiling collapses. 02058_ K-01 Serf collects debris. 02081_ The unstable cave ceiling collapses. 02096_ Crushed by falling debris. 02096_ Adv. Targeting Computer destroyed. 02096_ System corrupted by crushing effect (+3). Map ----- +----------------------------------------------------+ | | | | | | | | | | | | | | | | | | | | | | | | | | | | | | | | | | | | | | | | | ???????############?????????? | | ???????# #?????????? | | ???????# ##????????? | | ???????# % #????????? | | ???????# ! ##???####?? | | ???????# = #????##@##? | | ######## % ####?### #? | | # ##########+# #"???# #? | | "???# #? | | T ="???###? | | ####### ####"#### #? | | # #?????# #![ # #? | | ###/######??# # * ### #? | | #??# # ##%[ #? | | """" #??# #T%#= # ### | | ???"" #??#^ %# # | | ??????" #??#^ # """ # | | ???????? #??# " # """ # | | ?????????#### ^ # """ # | | ?????????#""" " # # | | ?????????#"R """ + """ # | | ?????????#""" ^""" # """ # | | ?????????# ""% ^ # """ # | | ############# # # | | ? # #[ # | | ? """ """ + # # | | ? """ """ ! # # # | | # """ """ # ### ####### | | # """ ######?? #????? | | # """ ^+???????? #????? | +----------------------------------------------------+ Best States ------------- Heat Dissipation 41 Energy Generation 14 Energy Capacity 250 Matter Stores 300 Matter Capacity 300 Sight Range 16 Terrain Scan Density 10 Armor Coverage 225 Evasion (%) 40 Targeting Accuracy 8 Recoil Reduction 2 Particle Charging 15 Salvage Targeting 1 Offensive Hacking 10 Item Schematics ----------------- None Robot Schematics ------------------ None Fabricated ------------ Nothing Alien Tech Used ----------------- None Achievements -------------- None Challenges ------------ None Game ------ Seed RagnarokIonConstruct Manual? 0 Play Time 00:21:06 Cumulative 75.6 hours Start 2025.03.18 @ 12:50:20 End 2025.03.18 @ 13:09:04 Sessions 1 Manual Loads 0 Difficulty Rogue Special Mode None Game No. 115 Rogue 115 Adventurer 0 Explorer 0 Win Type - Total 1 Types 1/0/0/0/0/0/0/0/0 Lore% 30 Gallery% 46 Achievement% 39 Wizard Run 0 Options --------- Layout 1 ASCII 1 Keyboard 0 Movement Numpad Keybinds 0 Fullscreen 1 Font 24/Smallcaps Map View 50x35 Zoom Use 0% Tactical HUD 1 Map Filters NONE Filters NONE Steam 1 RUN: e9fa5805-fee6-40ee-9282-ef2d3c41c852